Cogmind - Beta 15 @@@ ROGUE MODE // 2025.05.07 @ 17:40:14 Player: btmk16 Result: Destroyed by B-75 Beast with Heavy Plasma Cannon Performance ------------- Evolutions (4) 2000 Regions Visited (9) 1800 Robots Destroyed (70) 350 Value Destroyed (2119) 2119 Prototype IDs (5) 100 Alien Tech Used (0) 0 Bonus (1226) 1226 TOTAL SCORE: 7595 Bonus ------- Follower Combat Kills 426 Registered with UFD 300 Met Optimus in HQ 500 Cogmind --------- Core Integrity 0/850 Matter 300/300 Energy 99/100 System Corruption 3% Temperature Cool (12) Movement Core (50) Location -6/Extension Parts ------- > --- POWER (2) -------- (None) > --- PROPULSION (5) --- (None) > --- UTILITY (6) ------ Improved Light Armor Plating > --- WEAPON (2) ------- (None) > --- INVENTORY (5) ---- Scrap Suit Scrapoid Pod DRS Beacon (Ready) Peak State ------------ > --- POWER ------------ Deuterium Engine > --- PROPULSION ------- Light Treads Improved Treads Armored Treads Advanced Treads Advanced Treads > --- UTILITY ---------- Cooling System Huge Storage Unit Improved Sensor Array Improved Signal Interpreter Targeting Computer Improved Targeting Computer > --- WEAPON ----------- Gauss Rifle Coil Gun > --- INVENTORY -------- Nuclear Core Improved Treads Improved Treads Scrap Suit Large Storage Unit High-capacity Storage Unit High-capacity Matter Pod Hardened Medium Armor Plating Hacking Suite Scrapoid Pod Advanced Beam Cannon Minigun Assault Cannon Mini Assault Cannon Missile Launcher Missile Launcher Missile Launcher Missile Launcher Improved Datajack CPS Tube CPS Tube Heavy Flail DRS Beacon [Rating: 44] Favorites ----------- Power Nuclear Core Engine Improved Ion Engine Power Core Nuclear Core Propulsion Improved Treads Treads Improved Treads Leg Aluminum Leg Wheel Compact Wheel Flight Unit Cesium-ion Thruster Utility Large Storage Unit Device Cooling System Storage Large Storage Unit Processor Improved Targeting Computer Protection Hardened Medium Armor Plating Weapon Heavy Flail Energy Gun Particle Gun Energy Cannon Advanced Beam Cannon Ballistic Gun Light Assault Rifle Ballistic Cannon Mini Assault Cannon Launcher Missile Launcher Impact Weapon Heavy Flail Slashing Weapon Phasing Sabre Special Melee Weapon Improved Datajack Build | -11 -10 -9 -9 -8 -8 -8 -8 -6 -6 ------- Run | Yrd Mat Mat Min Mat Sto Rec Scr Fac Ext Slots Evolved 8 | . . 2 . 2 . . . 4 . Power 1 | . . . . . . . . 1 . Propulsion 3 | . . 1 . . . . . 2 . Utility 4 | . . 1 . 2 . . . 1 . Weapon . | . . . . . . . . . . Parts Attached 86 | 8 6 10 . 17 15 2 5 13 10 Power 11 | 2 . 1 . 2 2 1 1 . 2 Engine 8 | 2 . 1 . 2 1 . 1 . 1 Core 3 | . . . . . 1 1 . . 1 Reactor . | . . . . . . . . . . Propulsion 30 | 2 2 5 . 4 7 . 2 5 3 Treads 21 | 2 1 1 . 3 7 . 2 3 2 Leg 3 | . . 2 . . . . . . 1 Wheel 4 | . 1 2 . 1 . . . . . Hover . | . . . . . . . . . . Flight 2 | . . . . . . . . 2 . Utility 17 | 1 2 2 . 4 4 . 1 2 1 Device 5 | . 1 1 . . 2 . . 1 . Storage 4 | 1 1 . . 1 . . 1 . . Processor 4 | . . . . 3 . . . 1 . Hackware . | . . . . . . . . . . Protection 4 | . . 1 . . 2 . . . 1 Artifact . | . . . . . . . . . . Weapon 28 | 3 2 2 . 7 2 1 1 6 4 Energy Gun 5 | 2 . 1 . 2 . . . . . Energy Cannon 4 | . . 1 . 1 1 . . 1 . Ballistic Gun 7 | 1 2 . . 2 . . . 2 . Ballistic Cannon 3 | . . . . 1 1 . . 1 . Launcher 2 | . . . . 1 . . . 1 . Special Weapon . | . . . . . . . . . . Impact Weapon 1 | . . . . . . 1 . . . Slashing Weapon 5 | . . . . . . . . 1 4 Piercing Weapon . | . . . . . . . . . . Special Melee Weapon 1 | . . . . . . . 1 . . Unidentified Prototypes 4 | . . . . 2 2 . . . . Corrupted Parts 1 | . . . . . . . . . 1 System Corruption 3 | . . . . . . . . . 3 Parts Lost 31 | . 6 7 . 3 . . . 11 4 Power 6 | . 2 . . 2 . . . 2 . Propulsion 18 | . 2 3 . 1 . . . 8 4 Utility 1 | . . 1 . . . . . . . Weapon 6 | . 2 3 . . . . . 1 . Highest Loss Streak 8 | . 3 2 . 2 . . . 8 3 To Critical Strikes 2 | . . . . . . . . 1 1 Average Backups 13 | 3 7 6 7 12 14 14 16 20 2 Power . | . . . . . . . . . . Propulsion 2 | 3 4 . 1 1 1 2 3 2 . Utility 4 | . 2 3 4 5 5 4 3 5 1 Weapon 6 | . . 2 2 5 7 8 7 8 . Tool/Special . | . . . . . . . . . . Unused Backups 19 | . . . . . 6 1 2 9 1 Power . | . . . . . . . . . . Propulsion 1 | . . . . . 1 . . . . Utility 5 | . . . . . 1 . 1 3 . Weapon 10 | . . . . . 4 1 1 4 . Tool/Special 3 | . . . . . . . . 2 1 Average Slot Usage (%) 92 | . 76 84 100 93 100 98 99 85 15 Engine 4 | . 12 5 11 7 6 . 1 4 1 Core 3 | . . . . . 2 8 7 . . Treads 23 | . 25 6 11 10 27 27 27 30 1 Leg 1 | . . 11 11 6 . . . . 3 Wheel 1 | . . 10 11 8 . . . . . Device 8 | . . 12 11 9 9 9 9 10 . Storage 9 | . 14 11 11 9 9 9 9 5 . Processor 13 | . . . . 14 18 18 18 15 . Protection 7 | . . 4 11 9 9 9 9 1 . Energy Gun 1 | . 8 1 11 7 1 . . . . Energy Cannon 3 | . . 6 11 5 9 7 . . . Ballistic Gun 3 | . 14 13 . 3 . . . 10 . Ballistic Cannon 2 | . . . . 1 7 7 . . . Impact Weapon 3 | . . . . . . 1 9 . . Special Melee Weapon 2 | . . . . . . . 8 . . Peak Build Rating 44 | 6 9 14 12 24 33 32 35 44 28 Average Rating 25 | 4 5 10 12 18 30 31 30 39 11 On Entrance 16 | . 6 9 12 12 22 32 27 35 10 Naked Turns 36 | . . . . . . . . 3 33 Heaviest Build 108 | 14 29 36 36 38 46 46 103 108 27 Greatest Support 111 | 40 40 20 16 62 68 68 68 111 20 Greatest Overweight (x) 8 | . 8 3 2 3 . . 1 1 1 Average Overweight (x) . | . . 1 2 1 . . . . . Largest Inventory Capacity 25 | 8 15 15 15 15 15 15 25 25 5 Average Capacity 16 | 6 14 15 15 15 15 15 17 23 5 Most Carried 25 | 6 10 8 7 15 15 15 25 25 5 Average Carried 14 | 4 7 6 7 12 14 14 16 23 5 Final Capacity 25 | 8 15 15 15 15 15 15 25 5 5 Final Carried 25 | 6 9 7 7 15 14 15 25 5 5 Class Distribution -------------------- 56% | Commander-Mutant 25% | Mutant 18% | Scavenger-Mutant Dominant Class ---------------- Mutant | -10/Materials Mutant | -9/Materials Scavenger-Mutant | -9/Mines Scavenger-Mutant | -8/Materials Commander-Mutant | -8/Storage Commander-Mutant | -8/Recycling Commander-Mutant | -8/Scraptown Mutant | -6/Factory Mutant | -6/Extension Resources | -11 -10 -9 -9 -8 -8 -8 -8 -6 -6 ----------- Run | Yrd Mat Mat Min Mat Sto Rec Scr Fac Ext Matter Collected 2166 | 239 173 470 . 325 332 32 81 302 212 Remotely . | . . . . . . . . . . Salvage Created 2732 | . 421 560 . 395 852 . . 388 116 Parts 153 | . 20 32 . 22 40 . . 33 6 Haulers Intercepted 7 | . 1 . . 1 5 . . . . Recyclers Shooed 3 | . 1 1 . . . . . 1 . Parts Field Recycled . | . . . . . . . . . . Retrieved Matter . | . . . . . . . . . . Parts Self-Destructed . | . . . . . . . . . . Prevented . | . . . . . . . . . . Kills | -11 -10 -9 -9 -8 -8 -8 -8 -6 -6 ------- Run | Yrd Mat Mat Min Mat Sto Rec Scr Fac Ext Combat Hostiles Destroyed 52 | . 10 12 . 11 9 . . 8 2 Melee 2 | . . . . . . . . . 2 Guns 23 | . 10 4 . 2 2 . . 5 . Cannons 19 | . . 7 . 5 7 . . . . AOE 7 | . . . . 4 . . . 3 . Classes Destroyed 13 | . 3 3 . 1 1 . . 4 1 Worker 1 | . . . . . . . . 1 . Builder 4 | . . . . . 1 . . 3 . Tunneler 1 | . . . . . . . . 1 . Hauler 7 | . 1 . . 1 5 . . . . Recycler 2 | . . 1 . . 1 . . . . Watcher 2 | . . . . 1 . . . 1 . Swarmer 13 | . 3 3 . 4 . . . 3 . Grunt 22 | . 7 4 . 2 6 . . 3 . Duelist 1 | . . 1 . . . . . . . Sentry 13 | . . 4 . 5 4 . . . . Hunter 1 | . . . . . . . . 1 . Programmer 1 | . . . . . . . . 1 . Savage 1 | . . . . . . . . . 1 Guerrilla 1 | . . . . . . . . . 1 Best Kill Streak 7 | . 2 2 . 7 4 . . 7 2 Combat Bots Only 6 | . 2 2 . 6 4 . . 3 2 Max Kills in Single Turn 4 | . 1 1 . 3 2 . . 4 1 Gunslinging . | . . . . . . . . . . Exploded 3 | . . . . 3 . . . 2 . Melee 1 | . . . . . . . . . 1 Uniques/NPCs Destroyed . | . . . . . . . . . . Combat | -11 -10 -9 -9 -8 -8 -8 -8 -6 -6 -------- Run | Yrd Mat Mat Min Mat Sto Rec Scr Fac Ext Hostile Shots Fired 642 | . 81 85 . 46 34 6 . 176 214 Missed 211 | . 17 21 . 12 8 3 . 53 97 Hits 431 | . 64 64 . 34 26 3 . 123 117 Melee 4 | . . 3 . . . . . 1 . Projectile 427 | . 64 61 . 34 26 3 . 122 117 AOE 1 | . . . . . . . . . 1 Critical Strikes 13 | . 1 1 . 1 1 1 . 6 2 Damage Taken 5609 | . 816 836 . 564 407 43 . 1819 1124 Core 1578 | . 247 302 . 77 84 . . 299 569 Absorbed by Shields . | . . . . . . . . . . Redirected to Shielding 22 | . . 3 . 8 11 . . . . Core Remaining (%) 48 | 100 1 . 24 . . . 70 . . Volleys Fired 215 | . 57 54 . 33 40 . . 31 . Largest 2 | . 2 2 . 2 2 . . 2 . Hottest 133 | . 80 133 . 133 131 . . 105 . Shots Fired 401 | . 98 105 . 61 77 . . 60 . Gun 275 | . 98 76 . 35 16 . . 50 . Cannon 122 | . . 29 . 24 61 . . 8 . Launcher 4 | . . . . 2 . . . 2 . Special . | . . . . . . . . . . Kinetic 237 | . 71 70 . 22 20 . . 54 . Thermal 133 | . . 35 . 37 57 . . 4 . Explosive 4 | . . . . 2 . . . 2 . Electromagnetic 27 | . 27 . . . . . . . . Robot Hit Streak 19 | . 7 19 . 16 10 . . 18 . Robot Miss Streak 3 | . 3 3 . 3 3 . . 2 . Penetration Max 1 | . . . . . . . . 1 . Secondary Targets 1 | . . . . . . . . 1 . Max Gunslinging Chain 1 | . . . . . . . . 1 . Shots Hit Robots 302 | . 73 77 . 46 52 . 3 47 4 Core Hits 122 | . 25 22 . 24 22 . . 27 2 Critical Kills 2 | . . 1 . . . . . 1 . Critical Parts Destroyed 3 | . . . . 1 . . . 2 . Critical Strikes 8 | . . 2 . 2 1 . . 3 . Burn 3 | . . 1 . 1 1 . . . . Meltdown 1 | . . 1 . . . . . . . Destroy 4 | . . . . 1 . . . 3 . Melee Attacks 11 | . . . . . . . 3 3 5 Thermal 4 | . . . . . . . . 3 1 Impact . | . . . . . . . . . . Slashing 4 | . . . . . . . . . 4 Piercing . | . . . . . . . . . . Sneak Attacks 8 | . . . . . . . 3 . 5 Combat Hostiles . | . . . . . . . . . . Follow-up Attacks . | . . . . . . . . . . Damage Inflicted 5992 | . 839 984 . 1151 1144 . . 1579 295 Guns 2841 | . 779 513 . 395 203 . . 951 . Cannons 1958 | . . 471 . 425 929 . . 133 . Explosions 886 | . 60 . . 331 . . . 495 . Melee 289 | . . . . . . . . . 289 Ramming 18 | . . . . . 12 . . . 6 Kinetic 2630 | . 516 450 . 307 355 . . 1002 . Thermal 1966 | . 60 534 . 513 777 . . 82 . Explosive 826 | . . . . 331 . . . 495 . Electromagnetic 263 | . 263 . . . . . . . . Impact . | . . . . . . . . . . Slashing 289 | . . . . . . . . . 289 Piercing . | . . . . . . . . . . Highest Corruption 3 | . . . . 2 2 2 2 . 3 Average Corruption 2 | . . . . 2 2 2 2 . 3 Corruption Purged . | . . . . . . . . . . Corruption Blocked . | . . . . . . . . . . Effects 74 | . . . . . 27 11 36 . . Message Errors 17 | . . . . . 6 5 6 . . Matter Fused 19 | . . . . . 7 2 10 . . Heat Flow Errors 9 | . . . . . 3 1 5 . . Energy Discharges 14 | . . . . . 3 2 9 . . Data Loss (minor) 7 | . . . . . 4 1 2 . . Data Loss (major) 4 | . . . . . 2 . 2 . . Misfires 1 | . . . . . 1 . . . . Alerts 2 | . . . . . . . 2 . . Weapon Failures 1 | . . . . . 1 . . . . Overload Shots . | . . . . . . . . . . Overflow Damage 58 | . . 2 . 46 . . . 10 . Projectiles 8 | . . 2 . 6 . . . . . Explosions 50 | . . . . 40 . . . 10 . Melee . | . . . . . . . . . . Knockbacks 4 | . . . . 3 1 . . . . Impact . | . . . . . . . . . . Kinetic 4 | . . . . 3 1 . . . . Secondary . | . . . . . . . . . . Self-Inflicted Damage 132 | . 37 . . 32 . . . 60 3 Shots 4 | . 1 . . 1 . . . 2 . Rammed 3 | . . . . . 2 . . . 1 Targets Rammed 3 | . . . . . 2 . . . 1 Kicked . | . . . . . . . . . . Crushed . | . . . . . . . . . . Highest Temperature 315 | . 117 198 . 207 315 62 245 . . Average Temperature 61 | . 30 42 . 63 109 41 85 . . Received Heat Transfer 1584 | . 390 258 . 189 207 45 . 297 198 Siege Activations . | . . . . . . . . . . Martial Activations . | . . . . . . . . . . Shielding Activations . | . . . . . . . . . . Robots Disrupted . | . . . . . . . . . . Combat Hostiles . | . . . . . . . . . . Robots Corrupted . | . . . . . . . . . . Combat Hostiles . | . . . . . . . . . . Parts Fried . | . . . . . . . . . . Impact Corruptions . | . . . . . . . . . . Robots Melted 1 | . . 1 . . . . . . . Combat Hostiles 1 | . . 1 . . . . . . . Parts Melted 10 | . . 3 . 5 2 . . . . Heat Transferred 3935 | . 50 1073 . 1110 1554 . . 148 . Parts Sabotaged 1 | . . . . . . . . 1 . Parts Stolen . | . . . . . . . . . . Parts Stripped . | . . . . . . . . . . Power Chain Reactions 1 | . 1 . . . . . . . . Alert | -11 -10 -9 -9 -8 -8 -8 -8 -6 -6 ------- Run | Yrd Mat Mat Min Mat Sto Rec Scr Fac Ext Maximum Alert Level 1 | . . . . . 1 . . . . Low Security (%) 99 | 100 100 100 100 100 97 100 . 100 100 Level 1 . | . . . . . 2 . . . . Level 2 . | . . . . . . . . . . Level 3 . | . . . . . . . . . . Level 4 . | . . . . . . . . . . Level 5 . | . . . . . . . . . . High Security . | . . . . . . . . . . Max Security . | . . . . . . . . . . Peak Influence 212 | . 79 122 34 150 212 45 . 177 102 Initial 46 | . . 18 34 . 46 45 . . 37 Average 51 | . 19 42 7 101 101 2 . 38 42 Influence Increases 2482 | . 316 395 . 446 690 46 . 433 156 Destroy 0b10 Robot/C 1300 | . 200 240 . 220 320 20 . 200 100 Destroy 0b10 Robot/NC 90 | . 5 5 . 10 40 . . 30 . Destroy Leader 330 | . 32 90 . 74 92 . . 42 . Allied During Kill 173 | . . . . . 132 8 . 18 15 Successful Hack 86 | . . . . 5 24 18 . 17 22 Disable Machine 90 | . . . . 15 30 . . 45 . Destroy Structure 38 | . 4 . . 17 7 . . 6 4 Partial Spotted 45 | . . . . . . . . 45 . Lose Combat Pursuer 330 | . 75 60 . 105 45 . . 30 15 Influence Decreases 2469 | . 270 351 90 334 685 163 . 355 221 Entered New Map 263 | . . 28 56 . 66 72 . . 41 Time Decay 1798 | . 241 263 34 304 559 91 . 226 80 Lost Part 259 | . 29 60 . 30 . . . 100 40 Lost Ally 149 | . . . . . 60 . . 29 60 Squads Dispatched 11 | . . 3 . 1 4 . . 3 . Investigation 4 | . . 2 . . 1 . . 1 . Extermination 2 | . . . . . . . . 2 . Reinforcement 5 | . . 1 . 1 3 . . . . Assault . | . . . . . . . . . . Garrison . | . . . . . . . . . . Intercept . | . . . . . . . . . . Searches Triggered . | . . . . . . . . . . Construction Impeded 1 | . . . . . 1 . . . . Haulers Reinforced . | . . . . . . . . . . Active Scanning Responses . | . . . . . . . . . . Cargo Convoy Interrupts 1 | . . . . . . . . 1 . Stealth | -11 -10 -9 -9 -8 -8 -8 -8 -6 -6 --------- Run | Yrd Mat Mat Min Mat Sto Rec Scr Fac Ext Distress Signals 9 | . 1 . . 3 2 . . 1 2 Communications Jammed . | . . . . . . . . . . Distress Signals . | . . . . . . . . . . Times Spotted 131 | . 20 20 3 21 26 2 . 25 14 Peak Tracking Total 11 | . 4 5 3 7 4 1 . 11 10 Tactical Retreats 17 | . 4 3 . 5 2 . . 2 1 Traps | -11 -10 -9 -9 -8 -8 -8 -8 -6 -6 ------- Run | Yrd Mat Mat Min Mat Sto Rec Scr Fac Ext Traps Triggered 6 | . 5 1 . . . . . . . Indirectly . | . . . . . . . . . . Trap Hack Attempts . | . . . . . . . . . . Triggered . | . . . . . . . . . . Disarmed . | . . . . . . . . . . Reprogrammed . | . . . . . . . . . . Reused . | . . . . . . . . . . Traps Extracted . | . . . . . . . . . . Installed . | . . . . . . . . . . Triggered . | . . . . . . . . . . Machines | -11 -10 -9 -9 -8 -8 -8 -8 -6 -6 ---------- Run | Yrd Mat Mat Min Mat Sto Rec Scr Fac Ext Machines Disabled 6 | . . . . 1 2 . . 3 . Max in Single Turn 1 | . . . . 1 1 . . 1 . Garrison Access 1 | . . . . . 1 . . . . Energy Cycler 1 | . . . . . . . . . 1 Machines Repaired . | . . . . . . . . . . Machines Dismantled . | . . . . . . . . . . Machines Sabotaged . | . . . . . . . . . . Overloaded Fab Kills . | . . . . . . . . . . Hacking | -11 -10 -9 -9 -8 -8 -8 -8 -6 -6 --------- Run | Yrd Mat Mat Min Mat Sto Rec Scr Fac Ext Machines Accessed 40 | . 2 1 . 1 9 8 11 2 6 Terminals 25 | . 2 1 . 1 8 6 . 1 6 Fabricators . | . . . . . . . . . . Repair Stations . | . . . . . . . . . . Recycling Units . | . . . . . . . . . . Scanalyzers . | . . . . . . . . . . Garrison Access 2 | . . . . . 1 . . 1 . Total Hacks 162 | . 4 2 . 2 19 42 77 7 9 Successful 134 | . 1 . . 2 13 31 77 3 7 Failed 28 | . 3 2 . . 6 11 . 4 2 Catastrophic 3 | . . 1 . . 1 . . 1 . Database Lockouts . | . . . . . . . . . . Manual 45 | . 4 2 . 3 12 15 . 2 7 Terminals 55 | . 4 2 . 2 16 18 . 4 9 Fabricators . | . . . . . . . . . . Repair Stations . | . . . . . . . . . . Recycling Units . | . . . . . . . . . . Scanalyzers . | . . . . . . . . . . Garrison Access 6 | . . . . . 3 . . 3 . Terminal Hacks 108 | . . . . . 3 25 77 1 2 Record 92 | . . . . . . 24 68 . . Robot Analysis 10 | . . . . . . 1 9 . . Open Door 4 | . . . . . 2 . . . 2 Level Access Points 1 | . . . . . . . . 1 . Emergency Access Points 1 | . . . . . 1 . . . . Fabricator Hacks . | . . . . . . . . . . Repair Station Hacks . | . . . . . . . . . . Recycling Unit Hacks . | . . . . . . . . . . Scanalyzer . | . . . . . . . . . . Garrison Access Hacks 1 | . . . . . 1 . . . . Seal Access 1 | . . . . . 1 . . . . Unauthorized Hacks 25 | . 1 . . 2 9 6 . 2 5 Terminals 25 | . 1 . . 2 9 6 . 2 5 Track 1 | . 1 . . . . . . . . Botnet 12 | . . . . 1 5 2 . 1 3 Skim 12 | . . . . 1 4 4 . 1 2 Fabricators . | . . . . . . . . . . Repair Stations . | . . . . . . . . . . Recycling Units . | . . . . . . . . . . Scanalyzers . | . . . . . . . . . . Garrison Access . | . . . . . . . . . . Data Cores Recovered . | . . . . . . . . . . Used . | . . . . . . . . . . Hacking Detections 21 | . 2 1 . 1 6 5 . 2 4 Full Trace Events 4 | . . 1 . . 2 . . 1 . Feedback Events . | . . . . . . . . . . Feedback Blocked . | . . . . . . . . . . Robot Schematics Acquired . | . . . . . . . . . . Robots Built . | . . . . . . . . . . Authchips . | . . . . . . . . . . Time . | . . . . . . . . . . Total Robot Build Rating . | . . . . . . . . . . Part Schematics Acquired . | . . . . . . . . . . Parts Built . | . . . . . . . . . . Authchips . | . . . . . . . . . . Time . | . . . . . . . . . . Total Part Build Rating . | . . . . . . . . . . Parts Repaired . | . . . . . . . . . . Time . | . . . . . . . . . . Parts Recycled . | . . . . . . . . . . Recycled Matter . | . . . . . . . . . . Retrieved Matter . | . . . . . . . . . . Retrieved Components . | . . . . . . . . . . Parts Scanalyzed . | . . . . . . . . . . Part Schematics Acquired . | . . . . . . . . . . Parts Damaged . | . . . . . . . . . . Bothacking | -11 -10 -9 -9 -8 -8 -8 -8 -6 -6 ------------ Run | Yrd Mat Mat Min Mat Sto Rec Scr Fac Ext Used RIF Installer . | . . . . . . . . . . Robots Hacked 3 | . . . . . . . 3 . . Non-combat . | . . . . . . . . . . Combat 3 | . . . . . . . 3 . . Robot Hacks Applied 3 | . . . . . . . 3 . . parse_system 3 | . . . . . . . 3 . . Relay Couplers Released . | . . . . . . . . . . Fabnet Peak Effective % . | . . . . . . . . . . Robots Rewired . | . . . . . . . . . . Allies Hacked 1 | . . . . . . . . 1 . Hacks Repelled . | . . . . . . . . . . Allies | -11 -10 -9 -9 -8 -8 -8 -8 -6 -6 -------- Run | Yrd Mat Mat Min Mat Sto Rec Scr Fac Ext Total Allies 16 | . . . 2 . 10 . . . 4 Largest Group 10 | . . . 2 . 10 6 5 5 4 Highest-Rated Group 173 | . . . 43 . 173 109 93 93 140 Highest-Rated Ally 39 | . . . 31 . 29 29 29 29 39 Total Orders . | . . . . . . . . . . Ally Attacks 140 | . . . 1 . 71 6 . 40 22 Total Damage 1650 | . . . . . 855 81 . 372 342 Kills 14 | . . . . . 8 1 . 2 3 Allies Corrupted . | . . . . . . . . . . Allies Melted . | . . . . . . . . . . Intel | -11 -10 -9 -9 -8 -8 -8 -8 -6 -6 ------- Run | Yrd Mat Mat Min Mat Sto Rec Scr Fac Ext Active Infowar (turns) 586 | . . . . . . . . 586 . Sensors 586 | . . . . . . . . 586 . Robot Analysis Total 10 | . . . . . . 1 9 . . Derelict Logs Recovered 1 | . . . 1 . . . . . . Drone Launches . | . . . . . . . . . . Drone Recoveries . | . . . . . . . . . . Exploration | -11 -10 -9 -9 -8 -8 -8 -8 -6 -6 ------------- Run | Yrd Mat Mat Min Mat Sto Rec Scr Fac Ext Turns Passed 9524 | 85 909 719 191 756 1647 1278 2986 784 169 Spaces Moved 5321 | 44 412 271 101 425 893 764 1735 431 245 Core 132 | 5 2 . . . . . . 7 118 Treads 4246 | 39 388 49 . 17 893 764 1735 358 3 Legs 18 | . . . . 1 . . . . 17 Wheels 752 | . 22 222 101 407 . . . . . Hover . | . . . . . . . . . . Flight 173 | . . . . . . . . 66 107 Fastest Speed 32 | 50 110 95 130 115 155 155 155 32 35 Average Speed 151 | 147 161 136 130 130 155 155 171 142 52 Slowest Speed 450 | 160 450 240 130 330 155 155 238 239 240 Overloaded Moves . | . . . . . . . . . . Propulsion Burnouts . | . . . . . . . . . . Robots Hopped 1 | . . . . . . . . 1 . Potential Cave-ins . | . . . . . . . . . . Cave-ins Triggered . | . . . . . . . . . . Exploration Rate (%) 49 | 5 61 20 36 38 96 99 91 11 39 Regions Visited 9 Branch Regions 5 Pre-discovered Areas 1 | . . . . . 1 . . . . Known Exits Taken 4 | . . . . 1 1 1 1 . . Unknown Exits Taken 5 | 1 1 1 1 . . . . 1 . Scrap Searched 7 | . . . . . . . 7 . . Spaces Dug . | . . . . . . . . . . Terrain Destroyed 31 | . 3 . . 16 7 . . 5 . Melee . | . . . . . . . . . . Projectile 7 | . . . . . 7 . . . . AOE 24 | . 3 . . 16 . . . 5 . Terrain Rammed . | . . . . . . . . . . Walls Destroyed . | . . . . . . . . . . Machines Disabled . | . . . . . . . . . . Actions | -11 -10 -9 -9 -8 -8 -8 -8 -6 -6 --------- Run | Yrd Mat Mat Min Mat Sto Rec Scr Fac Ext Total 6380 | 60 562 526 161 560 1096 858 1753 529 275 Wait 628 | 4 73 185 61 62 107 90 . 42 4 Move 5310 | 43 411 270 100 424 892 763 1734 428 245 Hop 1 | . . . . . . . . 1 . Pick Up 42 | 5 5 3 . 8 11 1 8 1 . Fast Attach 54 | 6 10 5 . 13 3 . 1 7 9 Attach 19 | . 4 7 . 1 . . . 7 . Detach 8 | . 1 2 . 1 . 1 . 3 . Swap 35 | 2 1 . . 8 12 2 4 5 1 Drop 49 | . . . . 10 27 1 3 1 7 Fire 215 | . 57 54 . 33 40 . . 31 . Melee 11 | . . . . . . . 3 3 5 Ram 1 | . . . . . . . . . 1 Kick . | . . . . . . . . . . Crush 2 | . . . . . 2 . . . . Escape Stasis . | . . . . . . . . . . Rewire 5 | . . . . . 2 . . . 3 Trap . | . . . . . . . . . . Miscellaneous . | . . . . . . . . . . Route ------- -11/Scrapyard -10/Materials (discovered 3 exits: *Mat / [*Min] / [*Sub]) -9/Materials -9/Mines -8/Materials (discovered 2 exits: [*Fac] / *Sto) -8/Storage (discovered 2 exits: [*Fac] / *Rec) -8/Recycling (discovered 2 exits: *Fac / *Scr) -8/Scraptown (discovered 2 exits: *Fac x2) -6/Factory (discovered 5 exits: Fac x4 / *Ext) -6/Extension (discovered 1 exit: *Fac) History --------- Turn | Location | Event 3 | -11/Scrapyard | Discovered new exit (range 14) 86 | -11/Scrapyard | Entered Materials 313 | -10/Materials | Build established: Mutant 554 | -10/Materials | Discovered new exit (range 6) 664 | -10/Materials | Discovered new exit (range 5) 756 | -10/Materials | Discovered new exit (range 9) 877 | -10/Materials | Core integrity fell below 50% 930 | -10/Materials | Lost 3 parts (1p2n) 935 | -10/Materials | Core integrity fell below 20% 995 | -10/Materials | Entered another Materials area 995 | -9/Materials | Evolved 2 slots: Propulsion x1, Utility x1 996 | -9/Materials | Discovered new exit (range 7) 1572 | -9/Materials | Core integrity fell below 50% 1714 | -9/Materials | Entered Mines 1796 | -9/Mines | Learned Materials emergency access door positions 1818 | -9/Mines | Discovered new exit (range 9) 1887 | -9/Mines | Build established: Scavenger-Mutant 1905 | -9/Mines | Entered Materials 1905 | -8/Materials | Evolved 2 slots: Utility x2 2400 | -8/Materials | Discovered new exit (range 3) 2520 | -8/Materials | Discovered new exit (range 15) 2610 | -8/Materials | Identified exit to Storage 2661 | -8/Materials | Entered Storage 2761 | -8/Storage | Learned location of Armory (-3) 3055 | -8/Storage | Used back door to open Recycling access 3055 | -8/Storage | Discovered new exit (range 5) 3087 | -8/Storage | Met 01-MTF 3423 | -8/Storage | Assisted by bots powering up and referring to "LRC-V3" 3678 | -8/Storage | Discovered new exit (range 16) 3711 | -8/Storage | Build established: Commander-Mutant 4284 | -8/Storage | Identified exit to Recycling 4308 | -8/Storage | Entered Recycling 4308 | -8/Recycling | Accompanied by 8 allies (01-MTF) 5116 | -8/Recycling | Scanned before Scraplab entrance 5262 | -8/Recycling | Discovered new exit (range 9) 5550 | -8/Recycling | Entered Scraplab 5578 | -8/Recycling | Discovered new exit (range 3) 5580 | -8/Recycling | Identified exit to Scraptown 5586 | -8/Recycling | Entered Scraptown 5586 | -8/Scraptown | Accompanied by 5 allies 6187 | -8/Scraptown | Discovered new exit (range 5) 6195 | -8/Scraptown | Identified exit to Factory 6353 | -8/Scraptown | Visited Comm Corps 6415 | -8/Scraptown | Visited Awakened 6438 | -8/Scraptown | Visited Spacefarers 6627 | -8/Scraptown | Visited Cyclists 6678 | -8/Scraptown | Visited Cave Peace 7047 | -8/Scraptown | Visited The Evicted 7102 | -8/Scraptown | Visited CPS Storage 7147 | -8/Scraptown | Visited UFD Registry 7147 | -8/Scraptown | Registered with UFD as "Monofunk" 7266 | -8/Scraptown | Entered Cyclist Reading Room 7349 | -8/Scraptown | Visited Analyses Database 7383 | -8/Scraptown | Visited Scrap Suit Storage 7426 | -8/Scraptown | Visited Curators Association 7708 | -8/Scraptown | Visited Derelict Rescue Squad 7721 | -8/Scraptown | Found DRS Beacon 7750 | -8/Scraptown | Visited Scrapoid Pod Storage 7764 | -8/Scraptown | Found Scrapoid Pod 7920 | -8/Scraptown | Visited DA-N13 Charitable Foundation 7946 | -8/Scraptown | Found DCF Scrap (29 items) 8081 | -8/Scraptown | Visited Abandonware Association 8119 | -8/Scraptown | Learned abandonware demo "ERRANTS.EXE" 8119 | -8/Scraptown | Learned abandonware demo "MELTYB.EXE" 8374 | -8/Scraptown | Met Optimus 8374 | -8/Scraptown | Accepted into 0bPrime 8533 | -8/Scraptown | Found Scrap Suit 8568 | -8/Scraptown | Discovered exit to Factory (range 3) 8572 | -8/Scraptown | Entered Factory 8572 | -6/Factory | Accompanied by 5 allies 8572 | -6/Factory | Evolved 4 slots: Power x1, Propulsion x2, Utility x1 8772 | -6/Factory | Lost 4 allies 9041 | -6/Factory | Build established: Mutant 9232 | -6/Factory | Identified exit to Factory 9316 | -6/Factory | Released all parts (8) 9321 | -6/Factory | Cargo convoy interrupted 9335 | -6/Factory | Discovered new exit (range 11) 9345 | -6/Factory | Lost 8 parts (1p6n1w) 9356 | -6/Factory | Entered Extension 9376 | -6/Extension | Rescued a captive Derelict 9405 | -6/Extension | Core integrity fell below 50% 9410 | -6/Extension | Energy Cycler disabled 9410 | -6/Extension | Rescued a captive Derelict 9410 | -6/Extension | Rescued a captive Derelict 9410 | -6/Extension | Rescued a captive Derelict 9410 | -6/Extension | Rescued a captive Derelict 9411 | -6/Extension | Core integrity fell below 20% 9412 | -6/Extension | Rescued a captive Derelict 9412 | -6/Extension | Rescued a captive Derelict 9413 | -6/Extension | Rescued a captive Derelict 9417 | -6/Extension | Rescued a captive Derelict 9512 | -6/Extension | Extracted ID and sensor layout for unrecognized location from A7's data core 9518 | -6/Extension | Spotted B-75 Beast 9520 | -6/Extension | Discovered exit to Factory (range 15) 9525 | -6/Extension | Destroyed by B-75 Beast with Heavy Plasma Cannon Last Messages --------------- 09492_ Dropped Phasing Sabre. 09495_ Acquired 3 matter. 09501_ U-05 Engineer builds a Wall. 09506_ Acquired Corrupted Lgt. Treads. 09506_ Integrated Corrupted Lgt. Treads (+3). 09510_ Acquired 47 matter. 09512_ Acquired data core, extracted ID and sensor data for unrecognized location. 09513_ U-05 Engineer builds a Wall. 09514_ Acquired Imp. Light Armor Plating. 09516_ Slammed into U-05 Engineer. 09517_ Acquired 6 matter. 09517_ U-05 Engineer sends out distress signal. 09518_ Slug penetrates Wall. 09518_ Critical hit (Destroy). 09518_ Lgt. Treads destroyed. 09519_ Penetrated by Slug. 09520_ EXIT=FOUND: FACTORY 09522_ Carbon-fiber Leg destroyed. 09523_ Lgt. Treads destroyed. Map ----- +----------------------------------------------------+ | ?# #??# /*=#?# #???????????????????????????? | | ?########??# /% #?# #???????????????????????????? | | ???????????#######?# #???????????????????????????? | | ???????????????????# #???????????????????????????? | | ???????????????????# #???????????????????????????? | | ???????????????##### #???????????????????????????? | | ???????????????# #%# #???????????????????????????? | | ???????????????# [ + #???????????????????????????? | | ???????????????###T#!#???????????????????????????? | | ?????????????????###%#???????????????????????????? | | ??????????????????## #???????????????????????????? | | ????????????????####=#?#????????#????????????????? | | ????????????????# %#%#?"##?##??%#????????????????? | | ????????????????##;#%### ## ###%###??????????????? | | ?????????????????# ! h "R #??????????????? | | ?????????????????# %] "% #??????????????? | | ?????????????????# =! h s #??????????????? | | ?????????????????# =!%] s %s ##?????????????? | | ???????????####### =*[ ;#####?????????? | | ?????????? u % % ????????? | | ?????????? % ????????? | | ?????????? ????????? | | ?????????? ????????? | | ????????? Ak k ????????? | | ??????????######## BB ######?????????? | | ?????????????????# @ BB #??????????????? | | ?????????????????# #??????????????? | | ?????????????????# #??????????????? | | ?????????????????# #??????????????? | | ?????????????????######T# #######??????????????? | | ??????????????????????##? < #????????????????????? | | ?????????????????????????###?????????????????????? | | | | | | | | | | | | | | | | | | | | | | | | | | | | | | | | | | | | | +----------------------------------------------------+ Best States ------------- Heat Dissipation 59 Energy Generation 31 Energy Capacity 360 Matter Stores 300 Matter Capacity 300 Sight Range 16 Robot Scan Range 15 Terrain Scan Density 10 Armor Coverage 225 Utility Shielding 33 Evasion (%) 63 Targeting Accuracy 11 Target Analysis 5 Recoil Reduction 5 Item Schematics ----------------- None Robot Schematics ------------------ None Fabricated ------------ Nothing Repaired ---------- Nothing Alien Tech Used ----------------- None Achievements -------------- None Challenges ------------ None Game ------ Seed IonicSpreadMesh Manual? 0 Play Time 00:57:32 Cumulative 701.4 hours Start 2025.05.07 @ 16:45:09 End 2025.05.07 @ 17:40:14 Sessions 1 Manual Loads 0 Difficulty Rogue Special Mode None Game No. 700 Rogue 699 Adventurer 0 Explorer 1 Win Type - Total 33 Types 24/0/6/3/0/0/0/0/0/0 Lore% 82 Gallery% 80 Achievement% 79 Wizard Run 0 Options --------- Layout 0 ASCII 0 Keyboard 1 Movement Vi Keybinds 0 Fullscreen 1 Font 18/SmallcapsGlow Map View 76x50 Zoom Use 0% Tactical HUD 1 Map Filters NONE Filters NONE Steam 1 RUN: e8909239-8299-41fa-96f8-aff603fbfcdf